[Event "*** Titled Tuesday Blitz"]
[Site "Chess.com"]
[Date "2020.04.14"]
[Round "6"]
[White "Grischuk"]
[Black "GadimbayliA"]
[Result "1/2-1/2"]
[WhiteElo "3095"]
[BlackElo "2905"]
[TimeControl "180+1"]
[EndTime "11:02:17 PDT"]
[Termination "Game drawn by agreement"]

1. Nf3 {[%clk 0:03:00.9]} 1... d5 {[%clk 0:02:59.8]} 2. g3 {[%clk 0:03:00.9]}
2... Nc6 {[%clk 0:03:00]} 3. d4 {[%clk 0:02:59.1]} 3... Bg4 {[%clk 0:03:00]} 4.
Nbd2 {[%clk 0:02:58.7]} 4... Qd7 {[%clk 0:02:57.4]} 5. h3 {[%clk 0:02:58.7]}
5... Bxf3 {[%clk 0:02:56.9]} 6. Nxf3 {[%clk 0:02:58.2]} 6... g6 {[%clk
0:02:57.8]} 7. Bg2 {[%clk 0:02:55.6]} 7... Bg7 {[%clk 0:02:58.1]} 8. O-O {[%clk
0:02:55.3]} 8... e6 {[%clk 0:02:58.2]} 9. e3 {[%clk 0:02:45.8]} 9... Nge7 {[%clk
0:02:52.3]} 10. c4 {[%clk 0:02:44.4]} 10... O-O {[%clk 0:02:48.4]} 11. Qe2
{[%clk 0:02:31.9]} 11... Rfe8 {[%clk 0:02:40.7]} 12. Bd2 {[%clk 0:02:19.4]}
12... e5 {[%clk 0:02:31.2]} 13. dxe5 {[%clk 0:02:08.8]} 13... Nxe5 {[%clk
0:02:32.1]} 14. Nxe5 {[%clk 0:02:07.2]} 14... Bxe5 {[%clk 0:02:33]} 15. cxd5
{[%clk 0:02:04.6]} 15... Nxd5 {[%clk 0:02:33.9]} 16. Rad1 {[%clk 0:02:03]} 16...
c6 {[%clk 0:02:06.9]} 17. Bc1 {[%clk 0:02:02.4]} 17... Qe6 {[%clk 0:02:06.1]}
18. Qc4 {[%clk 0:01:46.5]} 18... Rad8 {[%clk 0:01:58]} 19. Qb3 {[%clk
0:01:43.9]} 19... Nb6 {[%clk 0:01:54.1]} 20. Qxe6 {[%clk 0:01:40.2]} 20... fxe6
{[%clk 0:01:53.8]} 21. f4 {[%clk 0:01:36.2]} 21... Bf6 {[%clk 0:01:51.5]} 22. e4
{[%clk 0:01:09.4]} 22... Bd4+ {[%clk 0:01:48.6]} 23. Kh2 {[%clk 0:01:09.8]}
23... Nc4 {[%clk 0:01:36.1]} 24. b3 {[%clk 0:01:09.9]} 24... Ne3 {[%clk
0:01:36.5]} 25. Bxe3 {[%clk 0:01:10.2]} 25... Bxe3 {[%clk 0:01:37.4]} 26. e5
{[%clk 0:01:11.1]} 26... Kf7 {[%clk 0:01:35]} 27. h4 {[%clk 0:01:11.1]} 27...
Ke7 {[%clk 0:01:33.1]} 28. Be4 {[%clk 0:00:53.5]} 28... Rxd1 {[%clk 0:01:23.7]}
29. Rxd1 {[%clk 0:00:54.4]} 29... Rd8 {[%clk 0:01:24.6]} 30. Rxd8 {[%clk
0:00:54.3]} 30... Kxd8 {[%clk 0:01:25.5]} 31. h5 {[%clk 0:00:38.6]} 31... gxh5
{[%clk 0:01:15.8]} 32. Kh3 {[%clk 0:00:38.8]} 32... h6 {[%clk 0:00:58]} 33. Bf3
{[%clk 0:00:36.4]} 1/2-1/2

[Event "*** Titled Tuesday Blitz"]
[Site "Chess.com"]
[Date "2020.04.14"]
[Round "6"]
[White "floplover"]
[Black "DucksParadise"]
[Result "1-0"]
[WhiteElo "2283"]
[BlackElo "2100"]
[TimeControl "180+1"]
[EndTime "11:02:18 PDT"]
[Termination "floplover won by resignation"]

1. d4 {[%clk 0:03:00.9]} 1... Nf6 {[%clk 0:02:54.7]} 2. c4 {[%clk 0:03:00.9]}
2... g6 {[%clk 0:02:54.1]} 3. Nc3 {[%clk 0:03:01.1]} 3... d5 {[%clk 0:02:54.5]}
4. cxd5 {[%clk 0:03:01.1]} 4... Nxd5 {[%clk 0:02:55.4]} 5. e4 {[%clk 0:03:01.7]}
5... Nxc3 {[%clk 0:02:55.5]} 6. bxc3 {[%clk 0:03:02.6]} 6... Bg7 {[%clk
0:02:56]} 7. Qa4+ {[%clk 0:03:02.8]} 7... Nd7 {[%clk 0:02:42]} 8. Nf3 {[%clk
0:03:01.2]} 8... O-O {[%clk 0:02:41.5]} 9. Be2 {[%clk 0:03:01.5]} 9... e5 {[%clk
0:02:40.9]} 10. Ba3 {[%clk 0:02:43.1]} 10... Re8 {[%clk 0:01:50]} 11. d5 {[%clk
0:02:32.1]} 11... f5 {[%clk 0:01:18.2]} 12. exf5 {[%clk 0:02:15.2]} 12... gxf5
{[%clk 0:01:15.4]} 13. O-O {[%clk 0:02:03]} 13... Nb6 {[%clk 0:00:59.9]} 14. Qb5
{[%clk 0:01:31.9]} 14... a6 {[%clk 0:00:49.3]} 15. Qb3 {[%clk 0:01:25]} 15...
Qxd5 {[%clk 0:00:39.9]} 16. c4 {[%clk 0:01:25.4]} 16... Qc6 {[%clk 0:00:22.6]}
17. c5+ {[%clk 0:01:13.7]} 17... Nd5 {[%clk 0:00:21.3]} 18. Bc4 {[%clk
0:01:14.1]} 18... Be6 {[%clk 0:00:20.9]} 19. Ng5 {[%clk 0:01:13.2]} 19... Rad8
{[%clk 0:00:09.6]} 20. Rad1 {[%clk 0:01:02.6]} 20... Nf4 {[%clk 0:00:04.7]} 21.
Rxd8 {[%clk 0:01:00.4]} 21... Bxc4 {[%clk 0:00:03.1]} 1-0

[Event "*** Titled Tuesday Blitz"]
[Site "Chess.com"]
[Date "2020.04.14"]
[Round "6"]
[White "GM4life"]
[Black "atalz0"]
[Result "0-1"]
[WhiteElo "2183"]
[BlackElo "2399"]
[TimeControl "180+1"]
[EndTime "11:02:19 PDT"]
[Termination "atalz0 won by resignation"]

1. e4 {[%clk 0:03:00.9]} 1... d5 {[%clk 0:02:59.9]} 2. exd5 {[%clk 0:03:00.7]}
2... Nf6 {[%clk 0:03:00.4]} 3. d4 {[%clk 0:02:59.9]} 3... Nxd5 {[%clk
0:03:00.6]} 4. c4 {[%clk 0:02:59.9]} 4... Nb6 {[%clk 0:03:01.1]} 5. Nf3 {[%clk
0:02:59.8]} 5... Bg4 {[%clk 0:03:00.3]} 6. Be3 {[%clk 0:02:54]} 6... e5 {[%clk
0:02:58.8]} 7. d5 {[%clk 0:02:48.8]} 7... Bb4+ {[%clk 0:02:57.7]} 8. Nc3 {[%clk
0:02:46.7]} 8... O-O {[%clk 0:02:34.5]} 9. h3 {[%clk 0:02:46.6]} 9... Bxf3
{[%clk 0:02:17.1]} 10. Qxf3 {[%clk 0:02:46.2]} 10... Na4 {[%clk 0:02:17.4]} 11.
Bc1 {[%clk 0:02:34.7]} 11... e4 {[%clk 0:02:13.3]} 12. Qg3 {[%clk 0:02:29.8]}
12... Qf6 {[%clk 0:01:55.1]} 13. Rb1 {[%clk 0:02:15.9]} 13... Nxc3 {[%clk
0:01:51.3]} 14. bxc3 {[%clk 0:02:15.8]} 14... Bxc3+ {[%clk 0:01:52]} 15. Bd2
{[%clk 0:02:16.1]} 15... Bxd2+ {[%clk 0:01:49.9]} 16. Kxd2 {[%clk 0:02:16.6]}
16... Qd4+ {[%clk 0:01:46.7]} 17. Ke1 {[%clk 0:02:16.1]} 17... Na6 {[%clk
0:01:41.5]} 18. Rxb7 {[%clk 0:01:49]} 18... Nc5 {[%clk 0:01:37.8]} 19. Rb5
{[%clk 0:01:26.5]} 19... Qa1+ {[%clk 0:01:32.9]} 20. Kd2 {[%clk 0:01:24.8]}
20... Qxa2+ {[%clk 0:01:29.4]} 21. Ke3 {[%clk 0:01:24.6]} 21... Rab8 {[%clk
0:01:12.1]} 22. Qxc7 {[%clk 0:00:42.1]} 22... Rxb5 {[%clk 0:01:06.6]} 23. cxb5
{[%clk 0:00:43]} 23... Qxd5 {[%clk 0:00:55.4]} 24. Be2 {[%clk 0:00:41.7]} 24...
Qb3+ {[%clk 0:00:53]} 25. Kd2 {[%clk 0:00:37.6]} 25... Qb2+ {[%clk 0:00:52.2]}
26. Ke1 {[%clk 0:00:25.1]} 26... Qc1+ {[%clk 0:00:50.9]} 27. Bd1 {[%clk
0:00:23.9]} 27... Nd3+ {[%clk 0:00:51]} 28. Ke2 {[%clk 0:00:24.2]} 28... Qxc7
{[%clk 0:00:50.9]} 0-1

[Event "*** Titled Tuesday Blitz"]
[Site "Chess.com"]
[Date "2020.04.14"]
[Round "6"]
[White "Sjakkerntobi"]
[Black "gixfantastix"]
[Result "1-0"]
[WhiteElo "2242"]
[BlackElo "2075"]
[TimeControl "180+1"]
[EndTime "11:02:21 PDT"]
[Termination "Sjakkerntobi won on time"]

1. e4 {[%clk 0:03:00.9]} 1... Nf6 {[%clk 0:02:58.2]} 2. e5 {[%clk 0:03:00.8]}
2... Nd5 {[%clk 0:02:58.4]} 3. Nc3 {[%clk 0:03:01.7]} 3... e6 {[%clk 0:02:45]}
4. Nf3 {[%clk 0:02:58.6]} 4... d6 {[%clk 0:02:41.6]} 5. exd6 {[%clk 0:02:48.7]}
5... Bxd6 {[%clk 0:02:39.6]} 6. Nxd5 {[%clk 0:02:47.4]} 6... exd5 {[%clk
0:02:40.5]} 7. d4 {[%clk 0:02:47.3]} 7... Bg4 {[%clk 0:02:31.9]} 8. Be2 {[%clk
0:02:47.1]} 8... Nd7 {[%clk 0:02:30.3]} 9. h3 {[%clk 0:02:44.3]} 9... Bh5 {[%clk
0:02:27.8]} 10. c3 {[%clk 0:02:41]} 10... Qe7 {[%clk 0:02:22.2]} 11. Be3 {[%clk
0:02:40.7]} 11... O-O-O {[%clk 0:02:20.7]} 12. Qd2 {[%clk 0:02:40.9]} 12... Kb8
{[%clk 0:02:19.4]} 13. O-O-O {[%clk 0:02:39.7]} 13... Nb6 {[%clk 0:02:02.3]} 14.
g4 {[%clk 0:02:38.4]} 14... Bg6 {[%clk 0:02:02.1]} 15. h4 {[%clk 0:02:38]} 15...
f6 {[%clk 0:01:59.3]} 16. h5 {[%clk 0:02:37.2]} 16... Be4 {[%clk 0:01:56.6]} 17.
Rde1 {[%clk 0:02:37]} 17... Qd7 {[%clk 0:01:53.1]} 18. Rhg1 {[%clk 0:02:35.7]}
18... Qa4 {[%clk 0:01:51.1]} 19. b3 {[%clk 0:02:35.2]} 19... Ba3+ {[%clk
0:01:32.3]} 20. Kd1 {[%clk 0:02:34.8]} 20... Qa5 {[%clk 0:01:22.6]} 21. Nh4
{[%clk 0:02:23.8]} 21... Nc4 {[%clk 0:00:52.6]} 22. bxc4 {[%clk 0:02:22.1]}
22... dxc4 {[%clk 0:00:50.1]} 23. Bxc4 {[%clk 0:02:20.9]} 23... c5 {[%clk
0:00:42]} 24. Bd3 {[%clk 0:02:10.2]} 24... Bc6 {[%clk 0:00:18.7]} 25. Nf5 {[%clk
0:01:58.5]} 25... g6 {[%clk 0:00:16.1]} 26. Ne7 {[%clk 0:01:54.8]} 26... Bf3+
{[%clk 0:00:15.5]} 27. Kc2 {[%clk 0:01:51.3]} 27... cxd4 {[%clk 0:00:14.3]} 28.
Bxd4 {[%clk 0:01:48]} 28... Qa4+ {[%clk 0:00:13.6]} 29. Kb1 {[%clk 0:01:48.5]}
29... Bxe7 {[%clk 0:00:10.6]} 30. Rxe7 {[%clk 0:01:46.1]} 30... Rd6 {[%clk
0:00:04.6]} 31. Qf4 {[%clk 0:01:40.5]} 31... Rd8 {[%clk 0:00:01.8]} 32. Re8
{[%clk 0:01:34]} 1-0

[Event "*** Titled Tuesday Blitz"]
[Site "Chess.com"]
[Date "2020.04.14"]
[Round "6"]
[White "GameOverBro"]
[Black "goofypenguin96"]
[Result "1-0"]
[WhiteElo "2553"]
[BlackElo "2101"]
[TimeControl "180+1"]
[EndTime "11:02:22 PDT"]
[Termination "GameOverBro won on time"]

1. e4 {[%clk 0:03:00.9]} 1... c6 {[%clk 0:02:56.3]} 2. Nc3 {[%clk 0:03:00.6]}
2... d5 {[%clk 0:02:56]} 3. Nf3 {[%clk 0:03:01.2]} 3... dxe4 {[%clk 0:02:54.2]}
4. Nxe4 {[%clk 0:03:02.1]} 4... Nf6 {[%clk 0:02:53.4]} 5. Qe2 {[%clk 0:03:02.6]}
5... Nxe4 {[%clk 0:02:39.1]} 6. Qxe4 {[%clk 0:03:03.5]} 6... Qd5 {[%clk
0:02:27.2]} 7. Qh4 {[%clk 0:03:02]} 7... Bf5 {[%clk 0:02:14.7]} 8. Bc4 {[%clk
0:03:01.6]} 8... Qe4+ {[%clk 0:01:50.8]} 9. Qxe4 {[%clk 0:03:01.4]} 9... Bxe4
{[%clk 0:01:50.2]} 10. Bxf7+ {[%clk 0:03:02]} 10... Kxf7 {[%clk 0:01:44.7]} 11.
Ng5+ {[%clk 0:03:01.9]} 11... Ke8 {[%clk 0:01:31.2]} 12. Nxe4 {[%clk 0:03:02.8]}
12... g6 {[%clk 0:01:29.7]} 13. d4 {[%clk 0:02:57.4]} 13... Bg7 {[%clk
0:01:27.7]} 14. Be3 {[%clk 0:02:49]} 14... Nd7 {[%clk 0:01:20.7]} 15. O-O-O
{[%clk 0:02:48.7]} 15... Nf6 {[%clk 0:01:13.8]} 16. Nxf6+ {[%clk 0:02:45.5]}
16... exf6 {[%clk 0:01:12.7]} 17. c4 {[%clk 0:02:42.9]} 17... Rd8 {[%clk
0:01:01.8]} 18. Kc2 {[%clk 0:02:40.8]} 18... Kf7 {[%clk 0:01:00.7]} 19. g3
{[%clk 0:02:33]} 19... a6 {[%clk 0:01:00.4]} 20. h4 {[%clk 0:02:32.5]} 20... h5
{[%clk 0:00:53.9]} 21. Rd3 {[%clk 0:02:32.3]} 21... Rd7 {[%clk 0:00:49.2]} 22.
Rhd1 {[%clk 0:02:31.1]} 22... Rhd8 {[%clk 0:00:48.3]} 23. a4 {[%clk 0:02:31.2]}
23... Bf8 {[%clk 0:00:37.1]} 24. Kb3 {[%clk 0:02:25.9]} 24... Bg7 {[%clk
0:00:25.2]} 25. d5 {[%clk 0:02:21.4]} 25... cxd5 {[%clk 0:00:23.1]} 26. Rxd5
{[%clk 0:02:19.5]} 26... Rxd5 {[%clk 0:00:22.3]} 27. cxd5 {[%clk 0:02:15.3]}
27... f5 {[%clk 0:00:20.7]} 28. Bb6 {[%clk 0:02:09.9]} 28... Rd6 {[%clk
0:00:20.1]} 29. a5 {[%clk 0:02:06]} 29... Rd7 {[%clk 0:00:19.4]} 30. Rd2 {[%clk
0:02:04.1]} 30... Bf6 {[%clk 0:00:19]} 31. Kc4 {[%clk 0:02:03.8]} 31... Be7
{[%clk 0:00:16.3]} 32. b4 {[%clk 0:02:01.6]} 32... Bd6 {[%clk 0:00:15.7]} 33.
Bc5 {[%clk 0:02:00.7]} 33... Bc7 {[%clk 0:00:13.8]} 34. d6 {[%clk 0:01:58.9]}
34... Bd8 {[%clk 0:00:12.6]} 35. Kd5 {[%clk 0:01:58.4]} 35... Bf6 {[%clk
0:00:12.2]} 36. Re2 {[%clk 0:01:58.1]} 36... Bd8 {[%clk 0:00:11.4]} 37. Bd4
{[%clk 0:01:51.5]} 37... Kf8 {[%clk 0:00:09.9]} 38. Be5 {[%clk 0:01:51.2]} 38...
Kf7 {[%clk 0:00:09.6]} 39. Rc2 {[%clk 0:01:51.2]} 39... Bf6 {[%clk 0:00:07.9]}
40. Rc7 {[%clk 0:01:45.6]} 40... Bxe5 {[%clk 0:00:04.6]} 41. Kxe5 {[%clk
0:01:46.5]} 41... Ke8 {[%clk 0:00:01.3]} 42. Ke6 {[%clk 0:01:46.6]} 1-0

[Event "*** Titled Tuesday Blitz"]
[Site "Chess.com"]
[Date "2020.04.14"]
[Round "6"]
[White "W_Amadeus"]
[Black "Kavyev_Ruslan"]
[Result "0-1"]
[WhiteElo "2695"]
[BlackElo "2554"]
[TimeControl "180+1"]
[EndTime "11:02:26 PDT"]
[Termination "Kavyev_Ruslan won by resignation"]

1. e4 {[%clk 0:03:00.9]} 1... c5 {[%clk 0:02:58]} 2. Nf3 {[%clk 0:03:01.2]} 2...
d6 {[%clk 0:02:58.4]} 3. d4 {[%clk 0:03:01.2]} 3... cxd4 {[%clk 0:02:59.3]} 4.
Nxd4 {[%clk 0:03:02.1]} 4... Nf6 {[%clk 0:02:59.8]} 5. Nc3 {[%clk 0:03:02.6]}
5... a6 {[%clk 0:03:00.4]} 6. Be3 {[%clk 0:03:02]} 6... e5 {[%clk 0:03:00.1]} 7.
Nb3 {[%clk 0:03:01.9]} 7... Be6 {[%clk 0:03:00.5]} 8. f3 {[%clk 0:03:01.7]} 8...
h5 {[%clk 0:03:00.3]} 9. Nd5 {[%clk 0:03:01.9]} 9... Bxd5 {[%clk 0:02:59.7]} 10.
exd5 {[%clk 0:03:02.8]} 10... Nbd7 {[%clk 0:03:00.4]} 11. Qd2 {[%clk 0:03:03]}
11... g6 {[%clk 0:03:00]} 12. O-O-O {[%clk 0:03:01.9]} 12... Bg7 {[%clk
0:02:59.9]} 13. Kb1 {[%clk 0:03:01.2]} 13... a5 {[%clk 0:02:58.2]} 14. a4 {[%clk
0:02:55.9]} 14... O-O {[%clk 0:02:58]} 15. Bb5 {[%clk 0:02:40.4]} 15... Qc7
{[%clk 0:02:58]} 16. Rc1 {[%clk 0:02:18.6]} 16... Rfc8 {[%clk 0:02:55.8]} 17. h3
{[%clk 0:02:06.3]} 17... e4 {[%clk 0:02:55.1]} 18. f4 {[%clk 0:02:01.1]} 18...
b6 {[%clk 0:02:37.4]} 19. g3 {[%clk 0:01:25.9]} 19... Nc5 {[%clk 0:02:37]} 20.
Nxc5 {[%clk 0:01:20.1]} 20... bxc5 {[%clk 0:02:37.9]} 21. c4 {[%clk 0:01:20.4]}
21... Rab8 {[%clk 0:02:30]} 22. Rcg1 {[%clk 0:01:18.8]} 22... Qe7 {[%clk
0:02:23]} 23. g4 {[%clk 0:01:16.2]} 23... Rc7 {[%clk 0:02:18.8]} 24. f5 {[%clk
0:01:06.2]} 24... Qe5 {[%clk 0:02:01.5]} 25. Bf4 {[%clk 0:00:55.4]} 25... Qe7
{[%clk 0:02:01.2]} 26. g5 {[%clk 0:00:51.7]} 26... Nh7 {[%clk 0:01:58.4]} 27. f6
{[%clk 0:00:47.5]} 27... Nxf6 {[%clk 0:01:58.4]} 28. gxf6 {[%clk 0:00:48.4]}
28... Qxf6 {[%clk 0:01:58.5]} 29. Rf1 {[%clk 0:00:40.3]} 29... Qe7 {[%clk
0:01:54]} 30. Be3 {[%clk 0:00:34.7]} 30... f5 {[%clk 0:01:53.2]} 31. Rhg1 {[%clk
0:00:30.9]} 31... Kh7 {[%clk 0:01:53.1]} 32. Qxa5 {[%clk 0:00:30.1]} 32... Ra7
{[%clk 0:01:48.9]} 33. Qd2 {[%clk 0:00:29.3]} 33... Rxa4 {[%clk 0:01:48.2]} 34.
Bxa4 {[%clk 0:00:28.6]} 34... Rxb2+ {[%clk 0:01:42.3]} 35. Qxb2 {[%clk 0:00:29]}
35... Bxb2 {[%clk 0:01:43.2]} 36. Kxb2 {[%clk 0:00:29.7]} 36... Qe5+ {[%clk
0:01:42.8]} 37. Kb1 {[%clk 0:00:14.5]} 37... Qc3 {[%clk 0:01:41.5]} 38. Rg3
{[%clk 0:00:09.1]} 38... Qb4+ {[%clk 0:01:40.1]} 39. Kc1 {[%clk 0:00:08.8]}
39... Qxc4+ {[%clk 0:01:40.3]} 40. Kb2 {[%clk 0:00:07.2]} 40... Qxf1 {[%clk
0:01:40.1]} 0-1

[Event "*** Titled Tuesday Blitz"]
[Site "Chess.com"]
[Date "2020.04.14"]
[Round "6"]
[White "1stSecond"]
[Black "ChessWarrior7197"]
[Result "0-1"]
[WhiteElo "2706"]
[BlackElo "2909"]
[TimeControl "180+1"]
[EndTime "11:02:27 PDT"]
[Termination "ChessWarrior7197 won by resignation"]

1. Nf3 {[%clk 0:02:59]} 1... d5 {[%clk 0:02:58.9]} 2. g3 {[%clk 0:02:58.9]} 2...
Nf6 {[%clk 0:02:58.6]} 3. Bg2 {[%clk 0:02:59.1]} 3... c6 {[%clk 0:02:58.4]} 4.
O-O {[%clk 0:02:59.1]} 4... Bg4 {[%clk 0:02:59]} 5. d3 {[%clk 0:02:57]} 5...
Nbd7 {[%clk 0:02:58.3]} 6. Nbd2 {[%clk 0:02:57.5]} 6... e5 {[%clk 0:02:58]} 7.
h3 {[%clk 0:02:56.4]} 7... Bh5 {[%clk 0:02:56.1]} 8. e4 {[%clk 0:02:56]} 8...
Bd6 {[%clk 0:02:55.5]} 9. Qe2 {[%clk 0:02:50.3]} 9... O-O {[%clk 0:02:55.4]} 10.
Rd1 {[%clk 0:02:48.9]} 10... Re8 {[%clk 0:02:52.8]} 11. Nf1 {[%clk 0:02:44.2]}
11... Nc5 {[%clk 0:02:51.9]} 12. N1d2 {[%clk 0:01:55.2]} 12... a5 {[%clk
0:02:50.9]} 13. a4 {[%clk 0:01:53.9]} 13... Qc7 {[%clk 0:02:44.8]} 14. Qe3
{[%clk 0:01:49.4]} 14... Rad8 {[%clk 0:02:41.4]} 15. b3 {[%clk 0:01:49]} 15...
Ne6 {[%clk 0:02:40.2]} 16. Bb2 {[%clk 0:01:47.3]} 16... Bc5 {[%clk 0:02:40.2]}
17. Qe1 {[%clk 0:01:45]} 17... Nd4 {[%clk 0:02:39.8]} 18. Rac1 {[%clk
0:01:34.5]} 18... Qb6 {[%clk 0:02:30.4]} 19. g4 {[%clk 0:00:55]} 19... Bg6
{[%clk 0:02:29]} 20. Nh4 {[%clk 0:00:49]} 20... Qc7 {[%clk 0:02:21.4]} 21. Nf5
{[%clk 0:00:34.2]} 21... h5 {[%clk 0:02:13.8]} 22. g5 {[%clk 0:00:14.5]} 22...
Nd7 {[%clk 0:02:12.8]} 23. Nh4 {[%clk 0:00:11.1]} 23... Qd6 {[%clk 0:02:10.5]}
24. c3 {[%clk 0:00:08]} 24... Ne6 {[%clk 0:02:09.4]} 25. Ndf3 {[%clk 0:00:05.4]}
25... Nf4 {[%clk 0:02:08.5]} 26. Bf1 {[%clk 0:00:04.8]} 26... Bb6 {[%clk
0:02:04.8]} 27. Qd2 {[%clk 0:00:04.3]} 27... Nc5 {[%clk 0:02:04.2]} 28. Qc2
{[%clk 0:00:04]} 28... Qe6 {[%clk 0:02:01.6]} 29. b4 {[%clk 0:00:03.9]} 29...
dxe4 {[%clk 0:01:56.7]} 30. bxc5 {[%clk 0:00:03.1]} 30... exd3 {[%clk 0:01:51]}
31. Qd2 {[%clk 0:00:02.3]} 31... Bxc5 {[%clk 0:01:51.3]} 32. Re1 {[%clk
0:00:02.4]} 32... Nxh3+ {[%clk 0:01:51]} 33. Kh2 {[%clk 0:00:03]} 33... Nxf2
{[%clk 0:01:50.8]} 34. Rxe5 {[%clk 0:00:03]} 34... Ng4+ {[%clk 0:01:49.3]} 35.
Kh1 {[%clk 0:00:01.7]} 35... Nxe5 {[%clk 0:01:49.4]} 36. Re1 {[%clk 0:00:01.2]}
36... Nxf3 {[%clk 0:01:49.4]} 37. Nxf3 {[%clk 0:00:01.9]} 37... Qg4 {[%clk
0:01:47.7]} 38. Re7 {[%clk 0:00:01.1]} 38... Rxe7 {[%clk 0:01:47.1]} 0-1

[Event "*** Titled Tuesday Blitz"]
[Site "Chess.com"]
[Date "2020.04.14"]
[Round "6"]
[White "SavelijTartakover"]
[Black "vugarrasulov"]
[Result "0-1"]
[WhiteElo "2587"]
[BlackElo "2748"]
[TimeControl "180+1"]
[EndTime "11:02:27 PDT"]
[Termination "vugarrasulov won by resignation"]

1. d4 {[%clk 0:03:00.9]} 1... Nf6 {[%clk 0:02:59.4]} 2. c4 {[%clk 0:02:59.7]}
2... e6 {[%clk 0:02:58.8]} 3. Nf3 {[%clk 0:02:59.2]} 3... b6 {[%clk 0:02:58.6]}
4. a3 {[%clk 0:02:58]} 4... Bb7 {[%clk 0:02:58.2]} 5. Nc3 {[%clk 0:02:57.4]}
5... d5 {[%clk 0:02:58.7]} 6. Bg5 {[%clk 0:02:56.8]} 6... Be7 {[%clk 0:02:56.7]}
7. e3 {[%clk 0:02:56.8]} 7... O-O {[%clk 0:02:56.4]} 8. Qc2 {[%clk 0:02:55.6]}
8... h6 {[%clk 0:02:56.2]} 9. Bxf6 {[%clk 0:02:54.4]} 9... Bxf6 {[%clk
0:02:57.1]} 10. cxd5 {[%clk 0:02:54.1]} 10... exd5 {[%clk 0:02:57]} 11. Be2
{[%clk 0:02:53.6]} 11... Nd7 {[%clk 0:02:53.9]} 12. O-O {[%clk 0:02:52.4]} 12...
c6 {[%clk 0:02:54.3]} 13. Rac1 {[%clk 0:02:41]} 13... Re8 {[%clk 0:02:51.6]} 14.
Rfd1 {[%clk 0:02:40.8]} 14... Qe7 {[%clk 0:02:49.8]} 15. Ne1 {[%clk 0:02:39.6]}
15... g6 {[%clk 0:02:39.7]} 16. Nd3 {[%clk 0:02:37.9]} 16... Bg7 {[%clk
0:02:39.2]} 17. Bf3 {[%clk 0:02:35.7]} 17... Nf6 {[%clk 0:02:36.4]} 18. Ne5
{[%clk 0:02:25.3]} 18... Nd7 {[%clk 0:02:35.9]} 19. Nxd7 {[%clk 0:02:23]} 19...
Qxd7 {[%clk 0:02:36.8]} 20. b4 {[%clk 0:02:21.8]} 20... a6 {[%clk 0:02:26.4]}
21. Qb3 {[%clk 0:02:18.6]} 21... Bf8 {[%clk 0:02:22.7]} 22. a4 {[%clk
0:02:14.6]} 22... b5 {[%clk 0:02:22.5]} 23. a5 {[%clk 0:02:12.9]} 23... Qe6
{[%clk 0:01:55.1]} 24. Ne2 {[%clk 0:02:05]} 24... Bd6 {[%clk 0:01:52.4]} 25. Nf4
{[%clk 0:01:52.8]} 25... Qe7 {[%clk 0:01:34.1]} 26. Nd3 {[%clk 0:01:51.1]} 26...
h5 {[%clk 0:01:34.1]} 27. g3 {[%clk 0:01:43.8]} 27... h4 {[%clk 0:01:33.4]} 28.
Re1 {[%clk 0:01:42]} 28... Kg7 {[%clk 0:01:31.5]} 29. e4 {[%clk 0:01:36.8]}
29... hxg3 {[%clk 0:01:30.7]} 30. hxg3 {[%clk 0:01:35.5]} 30... dxe4 {[%clk
0:01:30.1]} 31. Bxe4 {[%clk 0:01:08.5]} 31... Qf6 {[%clk 0:01:30]} 32. Nc5
{[%clk 0:00:45.9]} 32... Bxc5 {[%clk 0:01:26]} 33. dxc5 {[%clk 0:00:42.3]} 33...
Rad8 {[%clk 0:01:22.1]} 34. Qf3 {[%clk 0:00:35.2]} 34... Rd4 {[%clk 0:01:15.9]}
35. Rb1 {[%clk 0:00:22.3]} 35... Rdxe4 {[%clk 0:01:13.4]} 0-1

[Event "*** Titled Tuesday Blitz"]
[Site "Chess.com"]
[Date "2020.04.14"]
[Round "6"]
[White "Funkmaus"]
[Black "profofchess"]
[Result "0-1"]
[WhiteElo "2190"]
[BlackElo "2402"]
[TimeControl "180+1"]
[EndTime "11:02:34 PDT"]
[Termination "profofchess won by resignation"]

1. d4 {[%clk 0:03:00.9]} 1... Nf6 {[%clk 0:02:59.5]} 2. Nf3 {[%clk 0:02:59.8]}
2... c5 {[%clk 0:02:58.2]} 3. c3 {[%clk 0:02:58.4]} 3... e6 {[%clk 0:02:57.8]}
4. g3 {[%clk 0:02:57.5]} 4... b6 {[%clk 0:02:57.1]} 5. Bg2 {[%clk 0:02:57.1]}
5... Bb7 {[%clk 0:02:56.5]} 6. O-O {[%clk 0:02:56.5]} 6... Be7 {[%clk
0:02:55.6]} 7. a4 {[%clk 0:02:50.7]} 7... a6 {[%clk 0:02:44.6]} 8. Na3 {[%clk
0:02:45.3]} 8... cxd4 {[%clk 0:02:29.8]} 9. Nxd4 {[%clk 0:02:38.2]} 9... Bxg2
{[%clk 0:02:29]} 10. Kxg2 {[%clk 0:02:39.1]} 10... Qc7 {[%clk 0:02:26.8]} 11.
Qb3 {[%clk 0:02:15.8]} 11... O-O {[%clk 0:02:21.5]} 12. Nc4 {[%clk 0:02:14.5]}
12... Bc5 {[%clk 0:02:16.5]} 13. Bf4 {[%clk 0:01:58.3]} 13... d6 {[%clk
0:02:10.3]} 14. Bd2 {[%clk 0:01:18.5]} 14... Ne4 {[%clk 0:01:56.4]} 15. Qc2
{[%clk 0:01:13.1]} 15... d5 {[%clk 0:01:46.7]} 16. Bf4 {[%clk 0:01:03.9]} 16...
Qb7 {[%clk 0:01:36.2]} 17. Ne5 {[%clk 0:00:56.2]} 17... f6 {[%clk 0:01:24.9]}
18. Nd3 {[%clk 0:00:53.1]} 18... e5 {[%clk 0:01:13.3]} 19. Ne6 {[%clk
0:00:41.9]} 19... exf4 {[%clk 0:01:11.7]} 20. Nxf8 {[%clk 0:00:40.7]} 20... Bxf8
{[%clk 0:01:10.6]} 21. Nxf4 {[%clk 0:00:39.8]} 21... Nc6 {[%clk 0:00:54.3]} 22.
Rad1 {[%clk 0:00:37.8]} 22... Rd8 {[%clk 0:00:50.8]} 23. Rd3 {[%clk 0:00:35]}
23... Nc5 {[%clk 0:00:48.4]} 24. Re3 {[%clk 0:00:31.8]} 24... d4 {[%clk
0:00:40]} 25. cxd4 {[%clk 0:00:29.5]} 25... Nxd4+ {[%clk 0:00:39.6]} 26. Qe4
{[%clk 0:00:26.4]} 26... Nxe4 {[%clk 0:00:39.4]} 0-1